[Event "Lliga Catalana DH 2023"]
[Site "Catalonia"]
[Date "2023.03.04"]
[Round "7.8"]
[White "Nadal Fajardo, Ricard"]
[Black "Ruiz Lupon, Neri"]
[Result "1-0"]
[ECO "D36"]
[WhiteElo "2024"]
[BlackElo "1922"]
[Annotator "TA"]
[PlyCount "81"]
[EventDate "2023.01.24"]
[EventType "team-tourn"]
[EventCountry "ESP"]
[SourceTitle "playchess.com"]
[Source "ChessBase"]
[SourceQuality "1"]
[TimeControl "40/5400+30:1800+30"]

{[%evp 21,81,21,22,0,11,-5,14,-13,0,0,8,-12,8,0,56,14,25,0,30,18,67,62,74,83,82,85,81,80,137,120,132,124,107,112,120,117,179,185,303,293,295,272,391,372,492,492,480,418,508,541,564,566,609,605,692,690,679,675,646,540,548,532]} 1. d4 {[%emt 0:00:23]} d5 {[%emt 0:00:09]} 2. c4 {[%emt 0:00:18]} e6 {[%emt 0:00:08]} 3. Nc3 {[%emt 0:00:27]} Nf6 {[%emt 0:01:35]} 4. cxd5 {[%emt 0:00:46]} exd5 {[%emt 0:00:08]} 5. Bg5 {[%emt 0:00:29]} Be7 {[%emt 0:00:55]} 6. Qc2 {[%emt 0:00:18]} Nbd7 {[%emt 0:04:19][%cal Bb8d7,Bd7f8,Bf8e6][%mdl 32]} 7. e3 {[%emt 0:00:19]} c6 {[%emt 0:01:26]} 8. Bd3 {[%emt 0:00:11]} Nf8 {[%emt 0:00:09]} 9. Nf3 {[%emt 0:04:33]} g6 {[%emt 0:02:03]} 10. O-O {[%emt 0:04:40]} Ne6 {[%emt 0:00:13]} 11. Bh4 {[%emt 0:00:55]} O-O {[%emt 0:00:28]} 12. Ne5 {[%emt 0:00:58] D36: Queen's Gambit Declined: Exchange Variation: Main line (5 Bg5 c6 6 Qc2).} Ng7 {[%emt 0:06:43]} 13. Qb3 {[%emt 0:10:05]} Qb6 {[%emt 0:07:28] [#]} 14. Qc2 $146 {[%emt 0:09:31] The position is equal.} ({Predecessor:} 14. Na4 Qc7 {½-½ Garscha,K (2328)-Hoffmann,F (2364) WS MN/040 email 2008}) 14... Re8 {[%emt 0:09:44]} 15. Rac1 {[%emt 0:03:09]} Qd8 {[%emt 0:09:58]} 16. a3 {[%emt 0:04:11]} a5 {[%emt 0:01:11]} 17. Qb3 {[%emt 0:03:18]} Bd6 {[%emt 0:09:57]} (17... Nd7 $11 18. Bxe7 Rxe7) 18. f4 {[%emt 0:03:59]} (18. Na4 $5 {[%cal Ra4b6]}) 18... Be7 $1 {[%emt 0:07:30]} 19. Na4 {[%emt 0:14:17]} Nd7 {[%emt 0:03:28]} 20. Bf2 $36 {[%emt 0:03:43][%mdl 2048] White fights for an advantage.} Rb8 {[%emt 0:08:04]} (20... Nf6 $11) 21. e4 $14 {[%emt 0:10:42] White has more active pieces. The black rooks are badly placed.} Nxe5 {[%emt 0:04:03]} 22. dxe5 {[%emt 0:02:39]} dxe4 {[%emt 0:01:46]} 23. Bxe4 {[%emt 0:00:09]} Be6 {[%emt 0:00:05]} 24. Qc2 {[%emt 0:02:57]} Bf5 {[%emt 0:03:38]} (24... b5 $142) 25. Rfd1 {[%emt 0:01:06]} Qc8 {[%emt 0:01:22] [#]} 26. Ba7 $1 {[%emt 0:04:16] Black is weak on the dark squares} b5 {[%emt 0:02:22] Hoping for ...Rb7.} 27. Bxb8 {[%emt 0:02:02]} Qxb8 {[%emt 0:00:08] [#]} 28. Nc3 {[%emt 0:01:52]} Qb6+ {[%emt 0:01:01]} (28... Bc5+ $16 29. Kh1 Be3) 29. Kh1 $18 {[%emt 0:00:06]} Qe3 {[%emt 0:02:52]} (29... Bg4 $142 30. Rd3 Be6) 30. Bxf5 {[%emt 0:02:00]} Nxf5 {[%emt 0:00:10]} 31. Qe4 {[%emt 0:03:23]} Qxe4 {[%emt 0:04:38]} (31... Qb6 $142 32. Rd3 b4) 32. Nxe4 {[%emt 0:00:07]} Ne3 {[%emt 0:00:17]} 33. Rd7 {[%emt 0:00:51]} Nc4 {[%emt 0:00:17]} 34. g3 {[%emt 0:02:13]} Kf8 {[%emt 0:00:46]} 35. b3 {[%emt 0:01:19] White is clearly winning.} Bxa3 {[%emt 0:03:19]} 36. Ra1 {[%emt 0:01:53]} Bb2 {[%emt 0:01:32] Threatens to win with ...Nxe5.} 37. Ra2 {[%emt 0:00:19]} Nb6 {[%emt 0:00:03]} 38. Rb7 {[%emt 0:00:12]} Bd4 {[%emt 0:00:03]} 39. Rd2 {[%emt 0:00:35]} Be3 {[%emt 0:00:16]} 40. Rd3 {[%emt 0:00:21]} Nd5 {[%emt 0:00:06]} 41. Nc3 {[%emt 0:31:23] Weighted Error Value: White=0.12 (very precise) /Black=0.34} 1-0

[Event "Lliga Catalana DH 2023"]
[Site "Catalonia"]
[Date "2023.03.04"]
[Round "7.9"]
[White "Fernandez Climent, Albert"]
[Black "Gonzalez Escudero, Josep"]
[Result "1/2-1/2"]
[ECO "C03"]
[WhiteElo "1959"]
[BlackElo "1950"]
[Annotator "TA"]
[PlyCount "46"]
[EventDate "2023.01.24"]
[EventType "team-tourn"]
[EventCountry "ESP"]
[SourceTitle "playchess.com"]
[Source "ChessBase"]
[SourceQuality "1"]
[TimeControl "40/5400+30:1800+30"]

{[%evp 9,46,22,26,26,27,27,25,18,25,22,30,10,11,20,29,36,26,33,37,21,20,20,28,0,24,14,26,0,18,-4,29,27,30,17,25,0,0,-22,24]} 1. e4 {[%emt 0:00:08]} e6 {[%emt 0:00:11]} 2. d4 {[%emt 0:00:29]} d5 {[%emt 0:00:08]} 3. Nd2 {[%emt 0:00:09]} h6 {[%emt 0:00:45]} 4. Bd3 {[%emt 0:07:16]} c5 {[%emt 0:00:45][%cal Bc7c5,Bc5c4][%mdl 32]} 5. exd5 {[%emt 0:01:02]} exd5 {[%emt 0:01:51]} 6. Ngf3 {[%emt 0:02:53] C03: French Tarrasch: Unusual Black 3rd moves.} Nf6 {[%emt 0:02:07]} 7. O-O {[%emt 0:01:36]} c4 {[%emt 0:04:53]} 8. Re1+ {[%emt 0:04:07] White has an edge.} Be7 {[%emt 0:00:10]} 9. Bf1 {[%emt 0:05:06]} O-O {[%emt 0:00:36]} 10. c3 {[%emt 0:06:26]} Nc6 {[%emt 0:02:58]} 11. b3 {[%emt 0:01:43]} cxb3 {[%emt 0:04:56]} 12. axb3 {[%emt 0:00:05] [#]} Re8 $146 {[%emt 0:01:05]} ({Predecessor:} 12... Bf5 13. Ne5 Nxe5 14. dxe5 Nd7 15. Nf3 Nc5 16. Nd4 Bg6 17. f4 Ne6 18. f5 Nxd4 19. fxg6 {0-1 Grigoriants,S (2603)-Piorun,K (2609) Wch Blitz 9th 2015 (21)}) 13. Bd3 {[%emt 0:05:01]} Qc7 {[%emt 0:01:50]} 14. Bb2 {[%emt 0:08:01]} Be6 {[%emt 0:10:35]} 15. Nf1 {[%emt 0:07:29]} Bd6 {[%emt 0:11:02]} 16. h3 {[%emt 0:05:13]} Ne7 {[%emt 0:04:46]} 17. Ne3 {[%emt 0:01:42]} a5 {[%emt 0:03:51]} 18. Nh4 {[%emt 0:09:03]} Qd7 {[%emt 0:03:00]} 19. Qf3 {[%emt 0:18:03]} Nh7 20. Nhf5 {[%emt 0:10:43]} Nxf5 {[%emt 0:01:29]} 21. Bxf5 {[%emt 0:01:01]} (21. Nxf5 $5 {[%cal Rd3b5]} Ng5 22. Qg4 $14) 21... Qb5 {[%emt 0:04:10]} 22. Reb1 {[%emt 0:08:44][%cal Oc3c4]} Ng5 {[%emt 0:00:15]} 23. Qd1 {[%emt 0:07:18]} (23. Qg4 $5 {[%cal Rc3c4]}) 23... Bf4 {[%emt 0:05:11] Weighted Error Value: White=0.11 (very precise) /Black=0.07 (flawless)} (23... Qd7 {is more appropriate.} 24. Qg4 Ne4) 1/2-1/2

[Event "Lliga Catalana DH 2023"]
[Site "Catalonia"]
[Date "2023.03.04"]
[Round "7.9"]
[White "Catarineu Rabell, Manel"]
[Black "Ramirez Carrizo, Victor Jose"]
[Result "1/2-1/2"]
[ECO "D58"]
[WhiteElo "1923"]
[BlackElo "2179"]
[Annotator "TA"]
[PlyCount "56"]
[EventDate "2023.01.24"]
[EventType "team-tourn"]
[EventCountry "ESP"]
[SourceTitle "playchess.com"]
[Source "ChessBase"]
[SourceQuality "1"]
[TimeControl "40/5400+30:1800+30"]

{[%evp 21,56,-14,-20,-13,-13,-13,0,-25,-8,-26,-16,-11,-8,-54,0,0,15,-2,0,0,0,-22,0,0,0,-6,0,0,0,-4,0,0,0,0,-2,-12,-10]} 1. d4 d5 2. Nf3 Nf6 3. c4 e6 4. Bg5 Be7 5. Nc3 O-O 6. e3 Nbd7 7. Bd3 h6 8. Bh4 c5 9. O-O b6 10. Rc1 Bb7 11. Re1 Rc8 12. cxd5 {D58: Queen's Gambit Declined: Tartakower Defence.} (12. Ne5 {is more complex.} dxc4 13. Nxc4 cxd4 14. exd4 Nd5 15. Bxe7 Qxe7 16. Qd2) 12... Nxd5 13. Bxe7 Nxe7 {[#]} (13... Qxe7 {simplifies} 14. Nxd5 Bxd5 15. a3 Bb7) 14. Nb5 $146 ({Predecessor:} 14. Bf1 Nf6 15. Qe2 Ng6 16. g3 cxd4 17. Nxd4 Nd5 18. Bg2 Nxc3 19. bxc3 Bxg2 20. Kxg2 {0-1 Yangibayev,R (1451)-Witt,R (1709) Dortmund Sparkassen op-B 44th 2016 (1)}) 14... cxd4 15. Rxc8 Nxc8 16. Nfxd4 Nc5 {[#] Strongly threatening ...Nxd3.} 17. Be2 (17. Bb1 $11) 17... Qd7 (17... Qd5 $15 18. Bf3 Qxa2 19. Bxb7 Nxb7) 18. Nc3 {The position is equal.} Ne7 19. Bf3 Rd8 20. Bxb7 Qxb7 21. Qf3 Qa6 22. Qe2 Qxe2 23. Rxe2 e5 24. Nf3 f6 25. Rd2 Rxd2 26. Nxd2 Kf7 27. Kf1 Ke6 28. Ke2 Nd5 {Not much happened in this game.   Weighted Error Value: White=0.09 (flawless) /Black=0.09 (flawless)} 1/2-1/2

[Event "Lliga Catalana DH 2023"]
[Site "Catalonia"]
[Date "2023.03.04"]
[Round "7.10"]
[White "Bosque Ortega, Xavier"]
[Black "Galofre Galofre, Salvador"]
[Result "1-0"]
[ECO "D00"]
[WhiteElo "2166"]
[BlackElo "1762"]
[Annotator "TA"]
[PlyCount "141"]
[EventDate "2023.01.24"]
[EventType "team-tourn"]
[EventCountry "ESP"]
[SourceTitle "playchess.com"]
[Source "ChessBase"]
[SourceQuality "1"]
[TimeControl "40/5400+30:1800+30"]

{[%evp 9,141,-13,15,11,36,30,32,6,51,56,66,37,37,42,44,41,55,50,64,54,58,46,66,47,52,47,49,49,47,40,54,0,0,0,0,-5,-9,-5,4,25,54,45,45,45,44,36,37,0,36,36,47,35,44,0,41,43,50,7,43,39,51,51,205,0,0,0,0,0,0,0,0,0,0,0,0,0,0,0,0,0,0,0,0,0,0,0,0,0,0,0,0,0,0,0,0,0,0,0,0,0,0,0,0,0,0,0,0,0,0,0,0,0,0,-2178,-662,-643,-643,-615,-428,-277,548,0,1528,1424,1525,1456,1451,1449,1450,1437,1332,1131,1047,1041]} 1. d4 d5 2. Bf4 Nf6 3. e3 c5 4. c3 Nc6 5. Nd2 cxd4 6. exd4 {D00: 1 d4 d5: Unusual lines.} Bg4 7. Qb3 Qc8 8. h3 {White is slightly better.} Be6 (8... Qe6+ 9. Ne2 Bxe2 10. Bxe2 $14) 9. Bd3 g6 10. Ngf3 {White is more active.} Bg7 11. O-O O-O 12. Rfe1 Ne4 {[#]} 13. Qc2 $146 ({Predecessor:} 13. Bxe4 dxe4 14. d5 exf3 15. Nxf3 Bxd5 16. Qxd5 e6 17. Qb3 Na5 18. Qa4 b6 19. Be5 {0-1 Pabalan,R (2126)-Istratescu,A (2620) Dubai HOC blitz op 2019 (2)}) 13... Nxd2 14. Qxd2 Bf5 15. Bb5 Qd8 16. Bxc6 bxc6 {Black is weak on the dark squares} 17. Bh6 Qd6 18. Bxg7 Kxg7 19. Qe3 Rfe8 20. Qe5+ ({Better is} 20. g4 $14 Bc8 21. Qe5+ Qxe5 22. Nxe5) 20... f6 $11 21. Qxd6 exd6 22. Rxe8 Rxe8 23. Re1 {Inhibits Re2.} Rxe1+ 24. Nxe1 {[%mdl 4096] Endgame KB-KN} c5 25. g4 Bb1 26. a3 c4 27. f3 g5 28. Kf2 (28. Ng2 $5 {[%cal Rg2e3]}) 28... Bg6 29. Ng2 Bf7 30. Kg3 Be6 31. h4 h6 {[%cal Oh6h5]} 32. f4 Kh7 33. Ne1 Kg7 34. Nf3 {[%cal Rf4g5]} gxf4+ 35. Kxf4 h5 $2 36. g5 $2 (36. gxh5 Kh6 37. Ne1 Kxh5) (36. Nh2 $18) 36... Kg6 37. gxf6 Kxf6 38. Nd2 Bf7 39. Nf1 Be6 40. Ne3 Kg6 41. Nc2 a5 42. Na1 a4 {( -> ...Bf5)} 43. Nc2 Kf6 44. Nb4 Bf7 45. Na6 Be8 $1 46. Nb4 Bf7 47. Nc2 $1 Kg6 48. Ne3 Be6 {Prevents Nf5.} 49. Nc2 Bd7 50. Nb4 Be6 51. Nc6 Kf6 52. Nb8 Bc8 53. Nc6 Bd7 54. Nb4 Be6 55. Na6 Bd7 56. Nc7 (56. Nb4 $5 Be6 $8 57. Na6 $11) 56... Bc6 57. Kg3 Kf5 58. Kf3 Kf6 59. Kf4 Kg6 60. Ne6 Kf6 61. Nd8 $2 {[%mdl 8192]} (61. Ng5 $11) 61... Bd7 (61... Ba8 $142 62. Ke3 Ke7 {[%mdl 64] Trapped Piece}) 62. Nb7 $19 Ke7 63. Kg5 Bg4 64. Na5 {[#] Nc6+ is the strong threat.} Ke6 $4 {[%mdl 8192]} (64... Kd7 $1 $19 {[%cal Rd7c7] and all is fine. And now ...Kc7 would win.} 65. Kf6 Kc7) 65. Nc6 $18 Kd7 $2 {[%mdl 8192]} (65... Bf3 $11) 66. Nb4 {White is clearly winning.} Bf3 {[#]} 67. Nc2 $1 Ke6 68. Ne3 Be2 69. Nf5 Bg4 70. Ng7+ Kf7 71. Nxh5 {Weighted Error Value: White=0.10 (very precise) /Black=0.12 (very precise)} 1-0

[Event "Lliga Catalana DH 2023"]
[Site "Catalonia"]
[Date "2023.03.04"]
[Round "7.10"]
[White "Alvarez Serra, Jordi"]
[Black "Pinyol i Llora, Julia"]
[Result "0-1"]
[ECO "A07"]
[WhiteElo "1850"]
[BlackElo "1916"]
[Annotator "TA"]
[PlyCount "76"]
[EventDate "2023.01.24"]
[EventType "team-tourn"]
[EventCountry "ESP"]
[SourceTitle "playchess.com"]
[Source "ChessBase"]
[SourceQuality "1"]
[TimeControl "40/5400+30:1800+30"]

{[%evp 19,76,-6,-5,-20,0,-16,8,4,0,0,40,-12,-13,-51,-49,-58,-6,-9,0,-40,-27,-31,-45,-31,-43,-37,-38,-239,-248,-271,-262,-355,-329,-316,-156,-154,-165,-152,-27,-89,-59,-91,0,-133,-10,-243,-239,-163,-89,-84,-45,-264,-231,-373,-350,-464,-466,-496,-491]} 1. Nf3 {[%emt 0:00:04]} d5 {[%emt 0:04:41]} 2. b3 {[%emt 0:00:32]} Nf6 {[%emt 0:00:29]} 3. Bb2 {[%emt 0:00:25]} Bf5 {[%emt 0:00:18]} 4. d3 {[%emt 0:02:00]} e6 {[%emt 0:01:51]} 5. Nbd2 {[%emt 0:00:27]} h6 {[%emt 0:01:24]} 6. c4 {[%emt 0:00:50]} Be7 {[%emt 0:03:40]} 7. g3 {[%emt 0:03:44]} O-O {[%emt 0:01:25]} 8. Bg2 {[%emt 0:00:42]} c5 {[%emt 0:04:06]} 9. O-O {[%emt 0:03:02]} Nc6 {[%emt 0:01:29][%cal Bb8c6,Bc6b4,Bb4d3][%mdl 32]} 10. cxd5 {[%emt 0:02:04]} exd5 {[%emt 0:00:06]} 11. d4 {[%emt 0:02:35] A07: Réti Opening: New York and Capablanca Systems.} Ne4 {[%emt 0:05:04]} 12. e3 {[%emt 0:18:44]} Bf6 {[%emt 0:08:46]} 13. Ne5 {[%emt 0:05:44] [#] The position is equal.} Bxe5 $146 {[%emt 0:00:00]} ({Predecessor:} 13... cxd4 14. Nxc6 bxc6 15. Nxe4 dxe4 16. Bxd4 Bxd4 17. Qxd4 Qxd4 18. exd4 Rfd8 19. Rfd1 {½-½ Pribelszky,B (2389)-Leszko,B (2298) Budapest Vezerkepzo GM 12 2022 (5)}) 14. dxe5 {[%emt 0:01:55]} Nb4 {[%emt 0:05:09]} 15. Nxe4 {[%emt 0:02:22]} (15. Qe2 $14) 15... dxe4 $11 {[%emt 0:03:27]} 16. Qh5 {[%emt 0:09:10]} Bg6 {[%emt 0:00:00]} 17. Qg4 {[%emt 0:02:43]} Qg5 {[%emt 0:06:37]} ({Better is} 17... h5 $15 18. Qe2 Qd3 19. Qxd3 Nxd3) 18. Qxg5 {[%emt 0:01:19]} hxg5 {[%emt 0:00:21]} 19. Rfd1 {[%emt 0:00:56]} Nd3 {[%emt 0:01:39]} 20. Bc3 {[%emt 0:04:14]} Rfe8 {[%emt 0:01:00]} 21. f4 {[%emt 0:02:07]} exf3 {[%emt 0:00:00]} 22. Bxf3 {[%emt 0:00:00]} Rab8 {[%emt 0:05:14]} 23. Rxd3 $2 {[%emt 0:02:33]} Bxd3 $19 {[%emt 0:00:00]} 24. Bd5 {[%emt 0:02:54]} Bf5 {[%emt 0:02:11]} 25. e4 {[%emt 0:04:21]} Be6 {[%emt 0:00:00]} 26. Kf2 {[%emt 0:00:00] [#]} f5 {[%emt 0:06:31]} 27. Bxe6+ $17 {[%emt 0:02:03]} Rxe6 {[%emt 0:01:08]} 28. exf5 {[%emt 0:00:00][%mdl 4096] Endgame KRR-KRB} Rh6 {[%emt 0:04:10]} (28... Rf8 $1 $17 {[%cal Rf8f5]} 29. g4 g6) 29. Kf3 {[%emt 0:02:25]} (29. Rd1 $1 $11 {keeps the balance.}) 29... Rd8 $1 {[%emt 0:00:00] ...Rd3+ would be deadly.} 30. Kg4 {[%emt 0:02:35]} Rxh2 {[%emt 0:01:02] Black is more active.} (30... Rd3 $17 31. Rc1 Rxh2) 31. e6 {[%emt 0:03:33] [#]} (31. Re1 $11) 31... Re2 {[%emt 0:02:49]} ({Black should play} 31... Rc2 $1 $17 {[%cal Rc2c3]} 32. Be5 Re2) 32. Kxg5 $2 {[%emt 0:04:58]} (32. Kh5 $1 $11 {and White has nothing to worry.} Rd3 33. Rc1 Rh2+ 34. Kg6 Rh6+ 35. Kxg5) 32... Rd3 $19 {[%emt 0:04:28][%csl LRc3,LRg3]} 33. Rc1 {[%emt 0:01:10] [#]} Rxg3+ {[%emt 0:00:00]} (33... Rxa2 34. g4 Re2 35. Bxg7 Kxg7 36. Rxc5 $16) (33... Re4 $1 $19 34. Be1 (34. g4 $2 Rg3 $19) 34... b6) 34. Kf4 $17 {[%emt 0:01:57]} Rd3 {[%emt 0:02:34] And now ...Kf8 would win.} 35. Be5 $2 {[%emt 0:03:26]} (35. Ba1 $1 $15) 35... Rd5 $19 {[%emt 0:00:06]} (35... Rxa2 36. Rg1 Rf2+ 37. Ke4 Re2+ 38. Kf4 $11 (38. Kxd3 Rxe5 39. f6 g5 $11)) 36. Ba1 {[%emt 0:00:43]} (36. Bb8 $142) 36... Rf2+ {[%emt 0:00:57]} ({Inferior is} 36... Rxa2 37. Re1 Kf8 38. Bxg7+ (38. e7+ $2 Ke8 $19) 38... Kxg7 39. e7 Rd4+ 40. Kf3 Rd3+ 41. Kf4 Rf2+ 42. Kg5 Rg2+ 43. Kf4 Rf2+ 44. Kg5 Rg2+ 45. Kf4 Rf2+ $11) 37. Kg3 {[%emt 0:03:34]} Rfxf5 {[%emt 0:01:31]} (37... Rdxf5 $2 {too greedy.} 38. Rxc5 Rxc5 39. Kxf2 $19) 38. Re1 {[%emt 0:00:21]} Kf8 {[%emt 0:01:09] Weighted Error Value: White=0.66/Black=0.40} 0-1